[Event "Wuerttemberg Rapid Teams 2024"]
[Site "B?blingen, Germany"]
[Date "2024.04.13"]
[Round "3.24"]
[White "Siegle, Florian"]
[Black "Dietzel, Lukas"]
[Result "1-0"]
[ECO "C54"]
[WhiteElo "1912"]
[BlackElo "1782"]
[Annotator "TA"]
[PlyCount "91"]
[EventDate "2024.04.13"]
[EventType "team-tourn"]
[SourceTitle "playchess.com"]
[Source "ChessBase"]
[SourceQuality "1"]
[TimeControl "900+5"]

{[%evp 13,91,0,7,-64,-65,-143,5,3,10,-13,0,0,7,-44,-52,-64,0,-11,0,12,204,199,205,144,274,144,141,152,156,141,328,187,347,343,347,307,373,368,476,328,337,0,459,460,479,357,456,437,418,421,402,402,445,417,687,721,732,731,716,697,739,661,808,793,834,829,2087,4678,3804,2794,1675,848,1162,840,29971,665,29979,29980,29991,29992]} 1. e4 {[%emt 0:00:02]} e5 {[%emt 0:00:02]} 2. Bc4 {[%emt 0:00:03]} Nc6 {[%emt 0:00:18]} 3. Nf3 {[%emt 0:00:15]} Bc5 {[%emt 0:00:02]} 4. c3 {[%emt 0:00:08]} Nf6 {[%emt 0:00:07]} 5. d4 {[%emt 0:00:57]} exd4 {[%emt 0:00:09]} 6. e5 {[%emt 0:00:02]} d5 {[%emt 0:00:02]} 7. Bb5 {[%emt 0:00:21]} Ne4 {[%emt 0:00:10]} 8. Nxd4 {[%emt 0:00:18]} (8. cxd4 $11 Bb6 9. h3) 8... O-O $15 {[%emt 0:02:57]} 9. O-O {[%emt 0:00:07]} (9. Bxc6 $15 bxc6 10. O-O) 9... Nxd4 {[%emt 0:00:52]} ({Black should play} 9... Nxe5 $17 {...Bd6 is the strong threat.} 10. Nd2 Bg4) 10. cxd4 $11 {[%emt 0:00:04] The position is equal.} Bb6 {[%emt 0:00:09]} 11. Nc3 {[%emt 0:00:16]} f6 {[%emt 0:00:49]} 12. Bf4 {[%emt 0:02:13]} Be6 {[%emt 0:01:36]} 13. Rc1 {[%emt 0:01:27]} ({White should try} 13. Ba4 $11) 13... c6 $15 {[%emt 0:00:31] White must now prevent ...Nxc3.} 14. Be2 {[%emt 0:00:12]} fxe5 {[%emt 0:00:23]} (14... g5 $1 $15 15. Be3 fxe5) 15. Bxe5 $11 {[%emt 0:00:03]} Ng5 {[%emt 0:00:34]} 16. Na4 {[%emt 0:00:28]} Nh3+ $2 {[%emt 0:00:40]} 17. gxh3 $18 {[%emt 0:00:13]} Bxh3 {[%emt 0:00:08]} 18. Nxb6 {[%emt 0:00:29]} axb6 {[%emt 0:00:17] [#]} (18... Qg5+ $16 19. Bg3 Bxf1 20. Kxf1 (20. Nxa8 Bxe2 21. Qc2 Rxa8 $17) 20... axb6) 19. a3 {[%emt 0:00:04]} Qg5+ $16 {[%emt 0:01:51]} 20. Bg3 {[%emt 0:00:02]} Rae8 {[%emt 0:00:38]} 21. Rc3 {[%emt 0:00:43]} Qf5 $2 {[%emt 0:01:48]} (21... Bxf1 $16 22. Kxf1 (22. Bxf1 Re6 $18) 22... Re4) 22. Bd3 {[%emt 0:01:51]} (22. Re1 $142) 22... Qg5 $2 {[%emt 0:00:04]} (22... Qe6 {might work better.} 23. Be5 Bxf1 24. Bxf1 Qf5) 23. Re1 $18 {[%emt 0:01:31]} Rxe1+ {[%emt 0:00:35]} 24. Qxe1 {[%emt 0:00:05]} h5 {[%emt 0:00:16]} 25. Qe3 {[%emt 0:00:18]} Qg4 {[%emt 0:00:33]} 26. Be2 {[%emt 0:00:04]} Qg6 {[%emt 0:00:04] And now ...Re8 would win.} 27. Bd3 {[%emt 0:01:20]} Qg4 {[%emt 0:00:25] [#]} 28. f3 $1 {[%emt 0:00:01]} Qd7 {[%emt 0:00:16]} (28... Qe6 29. Qxe6+) 29. Bf1 {[%emt 0:00:16]} Bf5 {[%emt 0:00:28]} 30. Be5 {[%emt 0:00:07]} Qe7 {[%emt 0:00:30]} 31. Bd3 {[%emt 0:00:15]} Bxd3 {[%emt 0:00:12]} 32. Rxd3 {[%emt 0:00:05][%cal Bc3d3,Bd3d2,Bd2g2][%mdl 32]} Rf5 {[%emt 0:00:05]} 33. Rd2 {[%emt 0:00:07]} Qe6 {[%emt 0:00:06]} (33... Kh7 $142 34. Rg2 g6) 34. Rg2 {[%emt 0:00:05]} Rf7 {[%emt 0:00:07]} 35. Qg5 {[%emt 0:00:08][%csl LRg7,LRh5]} Qd7 {[%emt 0:00:08]} 36. Qxh5 {[%emt 0:00:10] Hoping for Qh6.} Qe7 {[%emt 0:00:03]} 37. Qg4 {[%emt 0:00:07]} c5 {[%emt 0:00:03]} 38. h4 {[%emt 0:00:03][%cal Bh2h4,Bh4h5,Bh5h6,Bh6h7][%mdl 32]} cxd4 {[%emt 0:00:04]} 39. Bxd4 {[%emt 0:00:03]} Qe1+ {[%emt 0:00:08]} 40. Kh2 {[%emt 0:00:07]} Qe7 {[%emt 0:00:02]} 41. h5 {[%emt 0:00:07][%cal Of3f4] aiming for f4!} (41. Bxb6 Qd6+ 42. Kh3 Qxb6 $14) 41... Qd6+ {[%emt 0:00:01]} 42. Qg3 {[%emt 0:00:16]} Qh6 {[%emt 0:00:01]} 43. Qg5 {[%emt 0:00:04]} Qd6+ {[%emt 0:00:02] [#]} 44. f4 {[%emt 0:00:05]} Qc7 {[%emt 0:00:13]} 45. h6 {[%emt 0:00:05]} Kf8 {[%emt 0:00:15]} 46. h7 {[%emt 0:00:03] Weighted Error Value: White=0.64/Black=0.61.  Loses game:     	---       	Black=2      Mistake:       	White=4     	Black=5      Inaccurate:     	White=1     	---        OK:         	White=5     	Black=9      Best:        	White=3     	Black=1} 1-0

[Event "Wuerttemberg Rapid Teams 2024"]
[Site "B?blingen, Germany"]
[Date "2024.04.13"]
[Round "3.25"]
[White "Belica, Matej"]
[Black "Kulm, Justin"]
[Result "0-1"]
[ECO "B30"]
[WhiteElo "2173"]
[BlackElo "1963"]
[Annotator "RC"]
[PlyCount "86"]
[EventDate "2024.04.13"]
[EventType "team-tourn"]
[SourceTitle "playchess.com"]
[Source "ChessBase"]
[SourceQuality "1"]
[TimeControl "900+5"]

1. e4 {[%emt 0:00:01]} c5 {[%emt 0:00:03]} 2. Nf3 {[%emt 0:00:01]} Nc6 {[%emt 0:00:01]} 3. Bb5 {[%emt 0:00:01]} e6 {[%emt 0:00:10]} 4. O-O {[%emt 0:00:13]} Nge7 {[%emt 0:01:29]} 5. Re1 {[%emt 0:00:16]} Ng6 {[%emt 0:00:32]} 6. c3 {[%emt 0:00:17]} d5 {[%emt 0:00:33]} 7. exd5 {[%emt 0:00:15]} Qxd5 {[%emt 0:00:04]} 8. c4 {[%emt 0:02:05]} Qd6 {[%emt 0:02:22]} 9. d4 {[%emt 0:00:12]} cxd4 {[%emt 0:00:22]} 10. Qxd4 {[%emt 0:01:00]} Bd7 {[%emt 0:00:38]} 11. Qc3 {[%emt 0:01:07]} Qc7 {[%emt 0:01:07]} 12. a3 {[%emt 0:00:14]} h5 {[%emt 0:03:21]} 13. b4 {[%emt 0:00:09]} h4 {[%emt 0:00:12]} 14. h3 {[%emt 0:00:03]} Rc8 {[%emt 0:00:42]} 15. Bb2 {[%emt 0:00:22]} Rh5 {[%emt 0:00:08]} 16. Qe3 {[%emt 0:00:38]} a6 {[%emt 0:00:12]} 17. Ba4 {[%emt 0:00:15]} Nce7 {[%emt 0:00:03]} 18. Bb3 {[%emt 0:00:20]} Nf5 {[%emt 0:00:08]} 19. Qe2 {[%emt 0:00:12]} Nf4 {[%emt 0:00:43]} 20. Qd1 {[%emt 0:00:35]} Be7 {[%emt 0:01:08]} 21. Be5 {[%emt 0:00:09]} Bd6 {[%emt 0:00:01]} 22. Nc3 {[%emt 0:00:57]} Bxe5 {[%emt 0:00:29]} 23. Nxe5 {[%emt 0:00:03]} Rg5 {[%emt 0:00:05]} 24. Nd5 {[%emt 0:00:34]} Rxg2+ {[%emt 0:00:45]} 25. Kf1 {[%emt 0:00:03]} exd5 {[%emt 0:00:37]} 26. Ng6+ {[%emt 0:03:03]} Be6 {[%emt 0:00:06]} 27. Nxf4 {[%emt 0:00:02]} Rxf2+ {[%emt 0:00:14]} 28. Kxf2 {[%emt 0:00:04]} Qxf4+ {[%emt 0:00:02]} 29. Qf3 {[%emt 0:00:05]} Qh2+ {[%emt 0:00:09]} 30. Qg2 {[%emt 0:00:03]} Qf4+ {[%emt 0:00:32]} 31. Qf3 {[%emt 0:00:06]} Qxf3+ {[%emt 0:00:15]} 32. Kxf3 {[%emt 0:00:02]} Nd4+ {[%emt 0:00:04]} 33. Kf4 {[%emt 0:00:15]} Nxb3 {[%emt 0:00:03]} 34. cxd5 {[%emt 0:00:04]} Rc4+ {[%emt 0:00:14]} 35. Kg5 {[%emt 0:00:36]} Nxa1 {[%emt 0:00:03]} 36. dxe6 {[%emt 0:00:01]} Nc2 {[%emt 0:00:05]} 37. exf7+ {[%emt 0:00:10]} Kxf7 {[%emt 0:00:01]} 38. Rd1 {[%emt 0:00:02]} Rc7 {[%emt 0:00:17]} 39. Rd3 {[%emt 0:00:11]} Ke7 {[%emt 0:00:08]} 40. Kxh4 {[%emt 0:00:04]} Kf6 {[%emt 0:00:03]} 41. Kg4 {[%emt 0:00:06]} Rc4+ {[%emt 0:00:01]} 42. Kg3 {[%emt 0:00:05]} Nd4 {[%emt 0:00:04]} 43. Re3 {[%emt 0:00:15]} Nf5+ {[%emt 0:00:01]} 0-1

[Event "Wuerttemberg Rapid Teams 2024"]
[Site "B?blingen, Germany"]
[Date "2024.04.13"]
[Round "3.27"]
[White "Vrabac, Branko"]
[Black "Schraegle, Thorsten"]
[Result "0-1"]
[ECO "A36"]
[WhiteElo "1932"]
[BlackElo "1918"]
[Annotator "TA"]
[PlyCount "74"]
[EventDate "2024.04.13"]
[EventType "team-tourn"]
[SourceTitle "playchess.com"]
[Source "ChessBase"]
[SourceQuality "1"]
[TimeControl "900+5"]

{[%evp 18,74,0,0,30,22,19,0,30,-46,-31,-77,0,-23,-27,-117,-131,-215,-207,-219,-216,-229,-185,-183,-176,-266,-157,-246,-245,-250,-178,-170,-154,-157,-170,-173,-172,-174,0,0,0,-578,-589,-594,-584,-706,-635,-695,-702,-1211,-1134,-998,-1200,-1513,-1429,-1516,-1382,-29979,-29979]} 1. c4 {[%emt 0:00:01]} c5 {[%emt 0:00:05]} 2. Nc3 {[%emt 0:00:02]} g6 {[%emt 0:00:01]} 3. g3 {[%emt 0:00:02]} Bg7 {[%emt 0:00:01]} 4. Bg2 {[%emt 0:00:01]} Nc6 {[%emt 0:00:01]} 5. e4 {[%emt 0:00:02]} d6 {[%emt 0:00:07]} 6. Nge2 {[%emt 0:00:01]} Nf6 {[%emt 0:00:02]} 7. O-O {[%emt 0:00:03]} O-O {[%emt 0:00:01]} 8. d3 {[%emt 0:00:02]} a6 {[%emt 0:00:03]} 9. h3 {[%emt 0:00:13]} Rb8 {[%emt 0:00:01]} 10. a4 {[%emt 0:00:15]} b6 {[%emt 0:01:03]} 11. Be3 {[%emt 0:00:01]} Bb7 {[%emt 0:00:02]} 12. Qd2 {[%emt 0:00:01]} Re8 {[%emt 0:00:07] The position is equal.} 13. f4 {[%emt 0:00:40]} ({White should play} 13. Rab1 $11) 13... e6 $15 {[%emt 0:00:14][%cal Od6d5]} 14. g4 {[%emt 0:00:11]} (14. Bf2 $15) 14... Nb4 {[%emt 0:00:10]} (14... d5 $17 {Hoping for ...d4.} 15. cxd5 exd5) 15. Ng3 {[%emt 0:00:08]} d5 {[%emt 0:00:04] [#] Threatens to win with ...d4.} 16. cxd5 {[%emt 0:01:27]} (16. Nce2 $11 {keeps the balance.}) 16... exd5 $17 {[%emt 0:00:02]} 17. d4 {[%emt 0:00:50]} (17. Rad1 $17) 17... dxe4 {[%emt 0:00:23]} 18. dxc5 {[%emt 0:02:49]} Qxd2 {[%emt 0:00:17]} 19. Bxd2 {[%emt 0:00:02]} bxc5 {[%emt 0:00:02]} 20. Rae1 {[%emt 0:00:38]} Nd3 {[%emt 0:00:14]} 21. Re3 {[%emt 0:00:44]} (21. Re2 $142) 21... Nd5 {[%emt 0:00:40]} (21... Nxb2 $19 {Strongly threatening ...Nc4.} 22. Re2 Nd3) 22. Nxd5 {[%emt 0:00:33]} (22. Rxe4 $17 Red8 (22... Nxb2 23. Rxe8+ Rxe8 24. Bxd5 $11) 23. Re2) 22... Bxd5 $19 {[%emt 0:00:03]} 23. Bc3 {[%emt 0:00:20]} Bd4 {[%emt 0:00:14]} 24. Bxd4 {[%emt 0:00:03]} cxd4 {[%emt 0:00:02]} 25. Rxd3 {[%emt 0:00:14]} exd3 {[%emt 0:00:22]} 26. Bxd5 {[%emt 0:00:02]} Rxb2 {[%emt 0:00:12]} 27. Rd1 {[%emt 0:00:14]} d2 $2 {[%emt 0:00:05]} (27... Re3 $19 28. Nf1 Rxh3) 28. Ne4 $11 {[%emt 0:00:02] [#] Black must now prevent Nf6+.} Rd8 {[%emt 0:00:20]} 29. Bb7 $2 {[%emt 0:00:28][%mdl 8192]} Rxb7 $19 {[%emt 0:00:05]} 30. Rxd2 {[%emt 0:00:02][%mdl 4096] Endgame. KRR-KRN} Rb4 {[%emt 0:00:50]} 31. a5 {[%emt 0:00:13]} Ra4 {[%emt 0:00:15]} 32. Nc5 {[%emt 0:00:01]} Rxa5 {[%emt 0:00:06]} 33. Nb7 {[%emt 0:00:02]} Ra1+ {[%emt 0:00:01]} 34. Kf2 {[%emt 0:00:03]} Rd5 {[%emt 0:00:23]} 35. Kf3 {[%emt 0:00:06]} f5 {[%emt 0:00:11]} 36. gxf5 {[%emt 0:00:12]} gxf5 {[%emt 0:00:02]} 37. h4 {[%emt 0:00:17]} Rb1 {[%emt 0:00:05] Weighted Error Value: White=1.02/Black=0.32.  Loses game:     	White=1     	---        Missed win:     	---       	Black=1      Mistake:       	White=6     	Black=2      Inaccurate:     	---       	Black=1      OK:         	White=9     	Black=4      Best:        	---       	Black=2} 0-1

[Event "Wuerttemberg Rapid Teams 2024"]
[Site "B?blingen, Germany"]
[Date "2024.04.13"]
[Round "3.28"]
[White "Guenter, Alexander"]
[Black "Ameln, Till"]
[Result "*"]
[ECO "D02"]
[WhiteElo "1997"]
[BlackElo "1887"]
[Annotator "TA"]
[PlyCount "40"]
[EventDate "2024.04.13"]
[EventType "team-tourn"]
[SourceTitle "playchess.com"]
[Source "ChessBase"]
[SourceQuality "1"]
[TimeControl "900+5"]

{[%evp 10,40,0,-4,0,-23,12,0,9,-4,16,-9,-8,-3,-2,-10,18,-6,0,-10,-32,-7,13,10,87,2,49,47,72,10,263,243,240]} 1. Nf3 {[%emt 0:00:02]} c6 {[%emt 0:00:05]} 2. g3 {[%emt 0:00:02]} d5 {[%emt 0:00:02]} 3. d4 {[%emt 0:00:02]} Nf6 {[%emt 0:00:13]} 4. Bg2 {[%emt 0:00:01]} Bf5 {[%emt 0:00:47]} 5. c3 {[%emt 0:00:03]} e6 {[%emt 0:00:07]} 6. O-O {[%emt 0:00:02]} Be7 {[%emt 0:00:08]} 7. Bg5 {[%emt 0:00:03]} Ne4 {[%emt 0:00:33]} 8. Bxe7 {[%emt 0:00:02]} Qxe7 {[%emt 0:00:01] The position is equal.} 9. Nbd2 {[%emt 0:00:03]} O-O {[%emt 0:00:14]} 10. Ne5 {[%emt 0:00:13]} Nxd2 {[%emt 0:00:27]} 11. Qxd2 {[%emt 0:00:02]} f6 {[%emt 0:00:11]} 12. Nd3 {[%emt 0:00:06]} Nd7 {[%emt 0:00:14]} 13. Rae1 {[%emt 0:00:03][%cal Ba1e1,Be1e4,Be4d4][%mdl 32]} e5 {[%emt 0:01:37]} 14. e4 {[%emt 0:00:04]} dxe4 {[%emt 0:00:27]} 15. Bxe4 {[%emt 0:00:01]} Bxe4 {[%emt 0:00:22]} 16. Rxe4 {[%emt 0:00:01]} Qd6 {[%emt 0:00:16]} (16... f5 $11 17. Re2 e4) 17. Rd1 {[%emt 0:00:59]} (17. Qe2 $16) 17... exd4 {[%emt 0:00:42]} (17... Qd5 $11 18. f3 Qxa2) 18. Rxd4 {[%emt 0:00:04]} (18. Qe2 $5 Qd5 (18... dxc3 $2 19. Ne1 $18) 19. b3 $16 (19. Rxd4 Qf7 $14) (19. cxd4 f5 $16)) 18... Qc7 {[%emt 0:00:06]} 19. Nf4 {[%emt 0:00:07] White is more active.} (19. Re1 $16 {Black must now prevent Re7.} Rf7 20. Rde4) 19... Nc5 $2 {[%emt 0:00:57][%mdl 8192] [#]} (19... Ne5 $11 20. Kg2 Rae8) 20. b4 $18 {[%emt 0:00:09]} g5 {[%emt 0:00:33] Weighted Error Value: White=0.29 (precise) /Black=0.54.  Loses game:     	---       	Black=1      Mistake:       	White=2     	Black=2      Inaccurate:     	---       	Black=2      OK:         	White=2     	Black=3      Best:        	White=1     	Black=1} *

[Event "Wuerttemberg Rapid Teams 2024"]
[Site "B?blingen, Germany"]
[Date "2024.04.13"]
[Round "3.29"]
[White "Seitz, Patrick"]
[Black "Koeller, Horst"]
[Result "0-1"]
[ECO "B22"]
[WhiteElo "2125"]
[BlackElo "1831"]
[Annotator "RC"]
[PlyCount "74"]
[EventDate "2024.04.13"]
[EventType "team-tourn"]
[SourceTitle "playchess.com"]
[Source "ChessBase"]
[SourceQuality "1"]
[TimeControl "900+5"]

1. e4 {[%emt 0:00:01]} c5 {[%emt 0:00:02]} 2. Nf3 {[%emt 0:00:02]} Nc6 {[%emt 0:00:02]} 3. c3 {[%emt 0:00:02]} Nf6 {[%emt 0:00:04]} 4. Bd3 {[%emt 0:00:01]} e5 {[%emt 0:00:04]} 5. O-O {[%emt 0:00:07]} Be7 {[%emt 0:00:03]} 6. Re1 {[%emt 0:00:02]} O-O {[%emt 0:00:03]} 7. Bc2 {[%emt 0:00:01]} d5 {[%emt 0:00:12]} 8. d3 {[%emt 0:00:09]} Bg4 {[%emt 0:00:14]} 9. Nbd2 {[%emt 0:00:26]} dxe4 {[%emt 0:00:47]} 10. dxe4 {[%emt 0:00:24]} Qc7 {[%emt 0:00:02]} 11. Qe2 {[%emt 0:00:20]} Rfd8 {[%emt 0:00:33]} 12. h3 {[%emt 0:00:12]} Bh5 {[%emt 0:00:02]} 13. Nf1 {[%emt 0:00:18]} a6 {[%emt 0:00:29]} 14. g4 {[%emt 0:00:12]} Bg6 {[%emt 0:00:01]} 15. Ng3 {[%emt 0:00:01]} b5 {[%emt 0:00:55]} 16. Bg5 {[%emt 0:02:02]} h6 {[%emt 0:00:58]} 17. Be3 {[%emt 0:01:04]} Na5 {[%emt 0:01:05]} 18. b3 {[%emt 0:00:38]} Nc6 {[%emt 0:00:02]} 19. Nf5 {[%emt 0:00:13]} Bf8 {[%emt 0:00:43]} 20. Rac1 {[%emt 0:00:05]} Re8 {[%emt 0:02:08]} 21. Kh2 {[%emt 0:00:06]} Nd8 {[%emt 0:00:50]} 22. Rg1 {[%emt 0:00:18]} Ne6 {[%emt 0:00:05]} 23. Rg3 {[%emt 0:01:23]} Rad8 {[%emt 0:00:53]} 24. g5 {[%emt 0:01:27]} Nh5 {[%emt 0:00:46]} 25. Rg2 {[%emt 0:01:02]} Nhf4 {[%emt 0:00:14]} 26. Qf1 {[%emt 0:00:09]} Nxg2 {[%emt 0:00:09]} 27. Qxg2 {[%emt 0:00:03]} Bxf5 {[%emt 0:00:38]} 28. exf5 {[%emt 0:00:48]} e4+ {[%emt 0:00:02]} 29. Kh1 {[%emt 0:00:06]} exf3 {[%emt 0:00:02]} 30. Qg4 {[%emt 0:00:21]} Nxg5 {[%emt 0:00:36]} 31. Bxg5 {[%emt 0:00:19]} hxg5 {[%emt 0:00:02]} 32. f6 {[%emt 0:00:29]} Qf4 {[%emt 0:03:38]} 33. Qxf4 {[%emt 0:02:33]} gxf4 {[%emt 0:00:00]} 34. Rg1 {[%emt 0:00:02]} g6 {[%emt 0:00:00]} 35. h4 {[%emt 0:00:10]} Re5 {[%emt 0:00:00]} 36. Rg4 {[%emt 0:00:42]} Rd2 {[%emt 0:00:00]} 37. Bxg6 {[%emt 0:00:40]} Re1+ {[%emt 0:00:00]} 0-1

[Event "Wuerttemberg Rapid Teams 2024"]
[Site "B?blingen, Germany"]
[Date "2024.04.13"]
[Round "3.30"]
[White "Narr, Kevin"]
[Black "Lessmeister, Patrick"]
[Result "1-0"]
[ECO "B53"]
[WhiteElo "1977"]
[BlackElo "1834"]
[Annotator "TA"]
[PlyCount "71"]
[EventDate "2024.04.13"]
[EventType "team-tourn"]
[SourceTitle "playchess.com"]
[Source "ChessBase"]
[SourceQuality "1"]
[TimeControl "900+5"]

{[%evp 9,71,0,16,7,0,0,0,0,23,16,32,27,39,47,70,56,66,52,62,49,56,58,62,32,85,79,77,35,84,69,108,57,50,65,71,66,290,59,259,42,20,26,23,27,60,54,96,95,92,70,78,67,74,75,521,525,835,813,822,788,29994,29995,29996,1147]} 1. e4 {[%emt 0:00:01]} c5 {[%emt 0:00:02]} 2. Nf3 {[%emt 0:00:02]} d6 {[%emt 0:00:01]} 3. d4 {[%emt 0:00:04]} cxd4 {[%emt 0:00:02]} 4. Qxd4 {[%emt 0:00:01]} Nc6 {[%emt 0:00:05]} 5. Bb5 {[%emt 0:00:18]} Bd7 {[%emt 0:00:01]} 6. Qe3 {[%emt 0:00:05]} g6 {[%emt 0:00:24]} 7. O-O {[%emt 0:00:13]} Bg7 {[%emt 0:00:24]} 8. Rd1 {[%emt 0:00:25] The position is equal.} Qa5 {[%emt 0:01:38]} 9. c4 {[%emt 0:00:06]} a6 {[%emt 0:02:30]} 10. Bd2 {[%emt 0:00:31]} Qc7 {[%emt 0:00:11]} 11. Bxc6 {[%emt 0:01:35]} bxc6 {[%emt 0:00:36]} 12. Nc3 {[%emt 0:00:13]} Nf6 {[%emt 0:00:09]} 13. h3 {[%emt 0:00:04]} O-O {[%emt 0:00:06]} 14. Rac1 {[%emt 0:00:10]} Be6 {[%emt 0:00:26]} 15. b3 {[%emt 0:00:05]} Nd7 {[%emt 0:00:31]} 16. Na4 {[%emt 0:00:10]} Ne5 {[%emt 0:00:43]} (16... c5 $14) 17. Nxe5 $16 {[%emt 0:00:59]} Bxe5 {[%emt 0:00:09]} 18. Qe1 {[%emt 0:00:30]} f5 {[%emt 0:02:33]} (18... c5 $14) 19. Ba5 {[%emt 0:00:10]} Qb7 {[%emt 0:00:25]} 20. Qe3 {[%emt 0:03:51]} (20. exf5 $16 Bxf5 21. g4) 20... fxe4 $14 {[%emt 0:01:27]} 21. Qxe4 {[%emt 0:00:01]} Bf5 {[%emt 0:00:14]} 22. Qe3 {[%emt 0:00:35] White is more active.} Bd7 $2 {[%emt 0:01:58]} (22... Rae8 $14) 23. Qe1 $2 {[%emt 0:00:08]} (23. Nc5 $1 $18 {[%cal Rc5b7]} dxc5 24. Qxe5) 23... Rf7 $2 {[%emt 0:00:21] [#]} ({Black should play} 23... Bf6 $14) 24. c5 $2 {[%emt 0:00:51]} (24. Nc5 $1 $18 {[%cal Rc5b7]} Bh2+ 25. Kxh2 dxc5 26. Rd2) 24... Raf8 {[%emt 0:00:14]} 25. Rc2 {[%emt 0:00:13]} Bf5 {[%emt 0:00:28] A strong pair of Bishops.} 26. Re2 {[%emt 0:00:40]} Qb5 {[%emt 0:00:36]} 27. Bc7 {[%emt 0:00:21][%cal Rc5d6]} (27. Rxe5 {simplifies} dxe5 28. Bc3 Qb8 29. Rd2) 27... Bd3 {[%emt 0:00:31] [#]} 28. Rxe5 {[%emt 0:02:27]} dxe5 {[%emt 0:00:03]} 29. Nc3 {[%emt 0:00:01]} Qxc5 {[%emt 0:00:27][%cal Rf7f2] ...Rxf2! is the strong threat.} 30. Rxd3 {[%emt 0:00:12][%cal Oc3e4] Black must now prevent Ne4!} Rxf2 {[%emt 0:00:03] ( -> ...Rf1+)} 31. Kh2 $36 {[%emt 0:00:57][%cal Oc3e4][%mdl 2048] Ne4! would now be deadly. White has strong initiative.} (31. Bxe5 {is a self mate.} Rf1+ (31... Rxa2+ $2 {is the wrong capture.} 32. Bd4 $18) 32. Kh2 Rxe1) (31. Qxe5 $2 Rxg2+ (31... Rxa2+ $2 32. Qxc5 Raf2 33. Qxf2 $18) 32. Kxg2 Qf2+ 33. Kh1 Qf1+ 34. Kh2 Rf2+ (34... Qxd3 35. Qe6+ Rf7 36. Ne4 $17) 35. Kg3 Rg2+ (35... Qxd3+ $2 36. Kxf2 Kf7 37. Qe3 $18) 36. Kh4 g5+ $19 (36... Qxd3 $2 37. Ne4 $19) (36... Qxd3 $2 37. Ne4 $19)) 31... e4 $2 {[%emt 0:00:12][%mdl 8192]} 32. Nxe4 $18 {[%emt 0:00:10]} Qf5 {[%emt 0:00:08]} 33. Nxf2 {[%emt 0:00:06]} Qxf2 {[%emt 0:00:02]} 34. Qe6+ {[%emt 0:00:06]} Kh8 {[%emt 0:00:03]} 35. Be5+ {[%emt 0:00:01]} Rf6 {[%emt 0:00:00]} 36. Rd8+ {[%emt 0:00:04] Weighted Error Value: White=0.30/Black=0.68.  Loses game:     	---       	Black=3      Missed win:     	White=2     	---        Mistake:       	White=1     	Black=2      Inaccurate:     	White=2     	Black=4      OK:         	White=11    	Black=10     Best:        	White=3     	Black=1} (36. Qxe7 $142 Qf4+ 37. Bxf4 Rxf4 38. Rd8+ Rf8 39. Rxf8#) 1-0